Workbook

Sheet 1 - Cover
B2: File Name | G2: =IFERROR(MID(CELL("filename",G2),FIND("[",CELL("filename",G2))+1,FIND("]",CELL("filename",G2))-FIND("[",CELL("filename",G2))-1),"Please save the file to show here") -> weighted-average-life-example-financial-model.xlsm
B3: Sheet Name | G3: =IFERROR(MID(CELL("filename",G2),FIND("]",CELL("filename",G2))+1,255),"Please save the file to show here") -> 1 - Cover
B4: Description and Purpose of Sheet | G4: Weighted Average Life Calculation Example
B5: Version number | G5: 1
B6: Date | G6: =TODAY() -> 2026-05-20
B9: WAL Example Cover Sheet
C11: Purpose
C13: The objective is to determine the Weighted Average Life (WAL) of a project‑finance capital structure. WAL measures the average time it takes for lenders to receive their principal back, weighted by the timing of each repayment.
C14: This is a core metric used by lenders, sponsors, and financial advisers to benchmark debt pricing and compare maturities across structures.
C15: The calculations in this workbook are a simulation to produce a total cashflow to be discounted (and whose WAL needs to be known)
C17: Scenario
C19: This workbook illustrates a stylised project‑finance structure comprising senior debt, subordinated debt and equity.
C20: Subordinated debt increases through capitalised interest during early years when no operating cash is available, reflecting typical construction‑period funding in PFI/PPP‑style projects.
C21: Once operational, senior debt amortises on a fixed annuity basis, while subordinated debt receives cash interest and limited principal repayments based on mechanics that are standard for project finance projects.
C23: What the WAL represents
C25: WAL is not the tenor of the loan – it reflects effective maturity, which depends on how quickly principal is repaid.
C26: A back‑ended principal repayment structure → long WAL
C27: A front‑loaded or sculpted principal repayment structure → shorter WAL
C28: WAL aligns debt pricing to actual risk exposure, since lenders are exposed for longer if principal is repaid later in the life of the asset.
C30: How to use the WAL
C32: With the Weighted Average Life (WAL) now calculated, the next step is to use it as the anchor point for debt pricing and benchmarking. WAL tells you the effective maturity of the senior debt—i.e., the average time over which lenders are exposed to principal risk.
C33: Once the WAL is known, it can be matched to the nearest point on the UK gilt curve to identify the appropriate reference rate for analysis or pricing. In practice, you would take the WAL value—say 11.8 years—and look up the corresponding gilt yield at roughly the same maturity. This ensures the cost of debt reflects the true duration of lender exposure rather than the headline loan tenor, creating a more accurate basis for evaluating financing options, setting margins, and comparing structure-to-structure.
C34: This ensures the cost of debt reflects the true duration of lender exposure rather than the headline loan tenor, creating a more accurate basis for evaluating financing options, setting margins, and comparing structure-to-structure.
C36: Outputs
C38: These are shown in the WAL Sumamry worksheet. The results based on four different calculation methodologies are shown
C39: (1) a weighted average based on the proportion of finance from each type of finance with principal repayments only,
C40: (2) similar to (1) but using both interest and principal repayments,
C41: (3) a weighted average based on combining the cashflows of all the finance sources into one overall 'notional' facility. It is then assumed that these cashflow are used against a GILT with the same principal amount (with the interest rate fixed based on using up all of the cashflows). The WAL is then calculated based on the principal repayments of the notional GILT facility, and
C42: (4) similar to (3) but based on principal and interest payments.
C43: We would recommend using result given by (3) unless there is a particular reason not to. Considering principal only is the more standard way of calculating a WAL. And combining the finance cashflows into one 'notional GILT facility' best replicates the approach HMG is most likely to take in financing the project entirely from GILTS (rather than splitting into different types of finance with different rates of return).
C46: Notes on use
C48: 1) The WAL in this model is based on the combined cashflows of senior debt, subordinated debt and equity‑like capital. Each instrument has a different repayment profile and effective maturity, so the model calculates a blended “Combo” WAL that weights all financing sources according to the timing of their principal‑like cashflows. This provides the most representative WAL for pricing, benchmarking or aligning to gilt curve maturities.
C49: 2) This calculation is based on the Weighted Average Life. There is alternative of using the 'Weighted Average Duration", but using WAL is simpler and for consistency we recommend using it unless there is a particular reason it is not appropriate.
C50: 3) It is important to understand whether you need the real or nominal GILT rate. Below sets out where you can look up either.
C51: 4) This spreadsheet provides an example case for an WAL calcuation to show projects a consistent basis for calculation. However, on an specific project, we would recommend that the WAL is calculated within the project financing model to make sure the correct inputs are used, but based on the methodology set out in this spreadsheet.
C52: 5) In practice, all you will need to do is to perform the calculation shown on the Single-Asset sheet using the outputs from the model of the real project you are working on.
C53: NB: Taxation (Corporation Tax) is not included in this illustrative model. In practice, UK project‑finance SPVs calculate taxable profit after interest deductions and capital allowances, typically generating tax losses during construction and early operation. These deferred tax effects can materially affect CFADS and gearing over time, but they are excluded here for simplicity.
C56: Notes on use
C58: - Go to: Bank of England → Statistics → Yield curves
C59: https://www.bankofengland.co.uk/statistics/yield-curves
C60: (BoE publishes daily estimated UK gilt curves and downloadable data.)
C61: - Download the latest GILT yield curve files. Within these use the relevant data set - which is likely to be either the 'spot curve' worsheet within the "GLC Nominal daily data current month". If you use the real rates, you need to be aware that the market implied inflation will likely be different from the inflation assumptions that are being used elsewhere in the analysis, so this may create an inconsistency in inflation assumptions. For consistency, it is therefore recommended to use the nominal rates and deflate these at the inflation assumption being used elsewhere in the appraisal. This is likely the latest GDP deflator series in the TAG data book. The rates to use should be the “UK nominal spot curve”. These are the zero‑coupon/spot rates by maturity used for benchmarking and interpolation.
C62: - Match your WAL to maturity and read the rate of the nearest benchmark of 5, 10 or 30 years:
C63: We do the above to match with the periods government usually issues debt, and are hence liquid periods.
B67: END

Sheet 2 - WAL Summary
B2: File Name | D2: =IFERROR(MID(CELL("filename",D2),FIND("[",CELL("filename",D2))+1,FIND("]",CELL("filename",D2))-FIND("[",CELL("filename",D2))-1),"Please save the file to show here") -> weighted-average-life-example-financial-model.xlsm
B3: Sheet Name | D3: =IFERROR(MID(CELL("filename",D2),FIND("]",CELL("filename",D2))+1,255),"Please save the file to show here") -> 2 - WAL Summary
B4: Description and Purpose of Sheet | D4: Weighted Average Life Calculation Example
B5: Version number | D5: 1
B6: Date | D6: =TODAY() -> 2026-05-20
B9: WAL Summary Results
B11: Facility | E11: Total Principal | F11: WAL-Principal (years)
B12: Senior Debt | E12: ='3 - Inputs'!D20 -> 90000000 | F12: ='4- Senior Debt'!D20 -> 12.09703488
B13: Subordinated Debt | E13: ='3 - Inputs'!D28 -> 8000000 | F13: ='5 - Sub Debt & Equity'!C20 -> 6.19129697
B14: Equity | E14: ='3 - Inputs'!D34 -> 2000000 | F14: ='5 - Sub Debt & Equity'!F20 -> 23.3437235
B15: Weighted average based on proportion of finance | E15: =SUM(E12:E14) -> 100000000 | F15: =SUMPRODUCT($E12:$E14,F12:F14)/$E15 -> 11.84950962
B17: Combo | E17: ='3 - Inputs'!D16 -> 100000000 | F17: ='6- Single Asset'!D23 -> 16.40733908
B19: Conclusion
B20: We would recommend using the WAL highlighted in green, which is based on (a) principal repayments only, and (b) considering a total combined level of finance for the project. Please see the cover sheet for more information.
A22: END

Sheet 3 - Inputs
B2: File Name | D2: =IFERROR(MID(CELL("filename",D2),FIND("[",CELL("filename",D2))+1,FIND("]",CELL("filename",D2))-FIND("[",CELL("filename",D2))-1),"Please save the file to show here") -> weighted-average-life-example-financial-model.xlsm
B3: Sheet Name | D3: =IFERROR(MID(CELL("filename",D2),FIND("]",CELL("filename",D2))+1,255),"Please save the file to show here") -> 3 - Inputs
B4: Description and Purpose of Sheet | D4: Weighted Average Life Calculation Example
B5: Version number | D5: 1
B6: Date | D6: =TODAY() -> 2026-05-20
B9: Inputs
C11: Parameter | D11: Value | F11: Parameter | G11: Value | I11: Notes
C13: Start Date | D13: 2026-04-01
C15: Assets and Liabilities Assumptions / Inputs | F15: Cashflow Assumptons / Inputs
C16: Total Asets | D16: 100000000
C18: Senior Gearing (Senior Debt / Total Assets) | D18: 0.9
C20: Senior Debt Amount | D20: =D16*D18 -> 90000000
C22: Senior Debt Interest Rate | D22: 0.05
C24: Senior Debt Term (years) | D24: 20 | F24: Average Annual Debt Service | G24: =-PMT($D$22,$D$24,$D$20) -> 7221832.847
C26: Junior Gearing (Sub-Debt / Equity) | D26: 0.8 | F26: Assumed ADSCR | G26: 1.2
C28: Subordinated Debt Amount | D28: =D16*(1-D18)*D26 -> 8000000 | F28: CFADS | G28: =G26*G24 -> 8666199.417 | I28: [DBFM-PPP Models are back-solved to calculate this CFADS, to which operational expenses are added to backsolve annual revenue / availability payment]
C30: Sub Debt Rate | D30: 0.12 | F30: Cashflow to pay Jnr Debt and Equity BEFORE Senior Debt Repaid | G30: =G28-G24 -> 1444366.569
C32: Sub Debt Term (years) | D32: 10 | F32: Cashflow to pay Jnr Debt and Equity AFTER Senior Debt Repaid | G32: CFADS | I32: [if the senior debt has a shorter final maturity than the stream of availability payments all of CFADS is available to pay junior capital]
I33: [in practice the junior debt service and dividends are owed to the same entity but whereas dividends and capital reductions are subject to limits by company law, junior debt service can be paid without any restriction (except there being sufficient cash) so is usually assumed to be paid first
C34: Ordinary Share Capital | D34: =D16*(1-D18)*(1-D26) -> 2000000
C36: Concession period (years) | D36: =MAX('4- Senior Debt'!$C$26:$C$50) -> 25 | I36: [Concession period refers to the life of the project span for which the private sector is in control. This should also consider the length of the pay back time of shareholder capital. In this example, the senior debt term is 20 years, however a further five years is required as availability payments continue and fund the return of shareholder capital through to year 25. ]
C38: Check
C39: Total Assets | D39: =D20+D28+D34 -> 100000000
C40: Senior Debt | D40: =D20 -> 90000000 | E40: =D40/$D$39 -> 0.9
C41: Sub Debt | D41: =$D$28 -> 8000000 | E41: =D41/$D$39 -> 0.08
C42: Share Capital / Equity | D42: =D34 -> 2000000 | E42: 0.02
C43: Total Liabilities | D43: =SUM(D40:D42) -> 100000000 | E43: =D43/$D$39 -> 1
B48: END

Sheet 4- Senior Debt
B2: File Name | D2: =IFERROR(MID(CELL("filename",D2),FIND("[",CELL("filename",D2))+1,FIND("]",CELL("filename",D2))-FIND("[",CELL("filename",D2))-1),"Please save the file to show here") -> weighted-average-life-example-financial-model.xlsm
B3: Sheet Name | D3: =IFERROR(MID(CELL("filename",D2),FIND("]",CELL("filename",D2))+1,255),"Please save the file to show here") -> 4- Senior Debt
B4: Description and Purpose of Sheet | D4: Weighted Average Life Calculation Example
B5: Version number | D5: 1
B6: Date | D6: =TODAY() -> 2026-05-20
B9: Senior Debt
C11: Inputs
C12: Parameter | D12: Value
C13: Senior Debt Amount | D13: ='3 - Inputs'!D20 -> 90000000
C14: Senior Debt Interest Rate | D14: ='3 - Inputs'!D22 -> 0.05
C15: Senior Debt Tenor (years) | D15: ='3 - Inputs'!D24 -> 20
C17: Total Annual Debt Service | D17: ='3 - Inputs'!G24 -> 7221832.847
C19: Key Results
C20: WAL-Principal | D20: =SUMPRODUCT(H26:H50,C26:C50)/SUM(H26:H50) -> 12.09703488
C21: IRR / YtM | D21: =IRR(F25:F50) -> 0.05
C24: Period | D24: Year | E24: Opening Balance | F24: Payment | G24: Interest | H24: Principal | I24: Closing Balance
F25: =-$D$13 -> -90000000
C26: 1 | D26: =EDATE('3 - Inputs'!$D$13, 12*(ROW()-ROW($D$26))) -> 2026-04-01 | E26: =IF($C26=1,$D$13,I25) -> 90000000 | F26: =IF(C26<=$D$15,$D$17,0) -> 7221832.847 | G26: =E26*$D$14 -> 4500000 | H26: =F26-G26 -> 2721832.847 | I26: =E26-H26 -> 87278167.15
C27: =C26+1 -> 2 | D27: =EDATE('3 - Inputs'!$D$13, 12*(ROW()-ROW($D$26))) -> 2027-04-01 | E27: =IF($A27=1,$C$4,I26) -> 87278167.15 | F27: =IF(C27<=$D$15,$D$17,0) -> 7221832.847 | G27: =E27*$D$14 -> 4363908.358 | H27: =F27-G27 -> 2857924.49 | I27: =E27-H27 -> 84420242.66
C28: =C27+1 -> 3 | D28: =EDATE('3 - Inputs'!$D$13, 12*(ROW()-ROW($D$26))) -> 2028-04-01 | E28: 84420242.66 | F28: 7221832.847 | G28: 4221012.133 | H28: 3000820.714 | I28: 81419421.95
C29: 4 | D29: =EDATE('3 - Inputs'!$D$13, 12*(ROW()-ROW($D$26))) -> 2029-04-01 | E29: 81419421.95 | F29: 7221832.847 | G29: 4070971.097 | H29: 3150861.75 | I29: 78268560.2
C30: 5 | D30: =EDATE('3 - Inputs'!$D$13, 12*(ROW()-ROW($D$26))) -> 2030-04-01 | E30: 78268560.2 | F30: 7221832.847 | G30: 3913428.01 | H30: =F30-G30 -> 3308404.837 | I30: 74960155.36
C31: 6 | D31: =EDATE('3 - Inputs'!$D$13, 12*(ROW()-ROW($D$26))) -> 2031-04-01 | E31: 74960155.36 | F31: 7221832.847 | G31: 3748007.768 | H31: 3473825.079 | I31: 71486330.28
C32: 7 | D32: =EDATE('3 - Inputs'!$D$13, 12*(ROW()-ROW($D$26))) -> 2032-04-01 | E32: 71486330.28 | F32: 7221832.847 | G32: 3574316.514 | H32: 3647516.333 | I32: 67838813.95
C33: 8 | D33: =EDATE('3 - Inputs'!$D$13, 12*(ROW()-ROW($D$26))) -> 2033-04-01 | E33: 67838813.95 | F33: 7221832.847 | G33: 3391940.698 | H33: 3829892.15 | I33: 64008921.8
C34: 9 | D34: =EDATE('3 - Inputs'!$D$13, 12*(ROW()-ROW($D$26))) -> 2034-04-01 | E34: 64008921.8 | F34: 7221832.847 | G34: 3200446.09 | H34: 4021386.757 | I34: 59987535.04
C35: 10 | D35: =EDATE('3 - Inputs'!$D$13, 12*(ROW()-ROW($D$26))) -> 2035-04-01 | E35: 59987535.04 | F35: 7221832.847 | G35: 2999376.752 | H35: 4222456.095 | I35: 55765078.95
C36: 11 | D36: =EDATE('3 - Inputs'!$D$13, 12*(ROW()-ROW($D$26))) -> 2036-04-01 | E36: 55765078.95 | F36: 7221832.847 | G36: 2788253.947 | H36: 4433578.9 | I36: 51331500.05
C37: 12 | D37: =EDATE('3 - Inputs'!$D$13, 12*(ROW()-ROW($D$26))) -> 2037-04-01 | E37: 51331500.05 | F37: 7221832.847 | G37: 2566575.002 | H37: 4655257.845 | I37: 46676242.2
C38: 13 | D38: =EDATE('3 - Inputs'!$D$13, 12*(ROW()-ROW($D$26))) -> 2038-04-01 | E38: 46676242.2 | F38: 7221832.847 | G38: 2333812.11 | H38: 4888020.737 | I38: 41788221.47
C39: 14 | D39: =EDATE('3 - Inputs'!$D$13, 12*(ROW()-ROW($D$26))) -> 2039-04-01 | E39: 41788221.47 | F39: 7221832.847 | G39: 2089411.073 | H39: 5132421.774 | I39: 36655799.69
C40: 15 | D40: =EDATE('3 - Inputs'!$D$13, 12*(ROW()-ROW($D$26))) -> 2040-04-01 | E40: 36655799.69 | F40: 7221832.847 | G40: 1832789.985 | H40: 5389042.862 | I40: 31266756.83
C41: 16 | D41: =EDATE('3 - Inputs'!$D$13, 12*(ROW()-ROW($D$26))) -> 2041-04-01 | E41: 31266756.83 | F41: 7221832.847 | G41: 1563337.842 | H41: 5658495.006 | I41: 25608261.83
C42: 17 | D42: =EDATE('3 - Inputs'!$D$13, 12*(ROW()-ROW($D$26))) -> 2042-04-01 | E42: 25608261.83 | F42: 7221832.847 | G42: 1280413.091 | H42: 5941419.756 | I42: 19666842.07
C43: 18 | D43: =EDATE('3 - Inputs'!$D$13, 12*(ROW()-ROW($D$26))) -> 2043-04-01 | E43: 19666842.07 | F43: 7221832.847 | G43: 983342.1035 | H43: 6238490.744 | I43: 13428351.33
C44: 19 | D44: =EDATE('3 - Inputs'!$D$13, 12*(ROW()-ROW($D$26))) -> 2044-04-01 | E44: 13428351.33 | F44: 7221832.847 | G44: 671417.5663 | H44: 6550415.281 | I44: 6877936.045
C45: 20 | D45: =EDATE('3 - Inputs'!$D$13, 12*(ROW()-ROW($D$26))) -> 2045-04-01 | E45: 6877936.045 | F45: 7221832.847 | G45: 343896.8022 | H45: 6877936.045 | I45: 3.445893526e-08
C46: 21 | D46: =EDATE('3 - Inputs'!$D$13, 12*(ROW()-ROW($D$26))) -> 2046-04-01 | E46: 3.445893526e-08 | F46: 0 | G46: 1.722946763e-09 | H46: -1.722946763e-09 | I46: 3.618188202e-08
C47: 22 | D47: =EDATE('3 - Inputs'!$D$13, 12*(ROW()-ROW($D$26))) -> 2047-04-01 | E47: 3.618188202e-08 | F47: 0 | G47: 1.809094101e-09 | H47: -1.809094101e-09 | I47: 3.799097613e-08
C48: 23 | D48: =EDATE('3 - Inputs'!$D$13, 12*(ROW()-ROW($D$26))) -> 2048-04-01 | E48: 3.799097613e-08 | F48: 0 | G48: 1.899548806e-09 | H48: -1.899548806e-09 | I48: 3.989052493e-08
C49: 24 | D49: =EDATE('3 - Inputs'!$D$13, 12*(ROW()-ROW($D$26))) -> 2049-04-01 | E49: 3.989052493e-08 | F49: 0 | G49: 1.994526247e-09 | H49: -1.994526247e-09 | I49: 4.188505118e-08
C50: 25 | D50: =EDATE('3 - Inputs'!$D$13, 12*(ROW()-ROW($D$26))) -> 2050-04-01 | E50: 4.188505118e-08 | F50: 0 | G50: 2.094252559e-09 | H50: -2.094252559e-09 | I50: 4.397930374e-08
D56: Total | F56: =SUM(F26:F45) -> 144436656.9 | G56: =SUM(G26:G45) -> 54436656.94 | H56: =SUM(H26:H45) -> 90000000
B94: END

Sheet 5 - Sub Debt & Equity
B2: File Name | D2: =IFERROR(MID(CELL("filename",D2),FIND("[",CELL("filename",D2))+1,FIND("]",CELL("filename",D2))-FIND("[",CELL("filename",D2))-1),"Please save the file to show here") -> weighted-average-life-example-financial-model.xlsm
B3: Sheet Name | D3: =IFERROR(MID(CELL("filename",D2),FIND("]",CELL("filename",D2))+1,255),"Please save the file to show here") -> 5 - Sub Debt & Equity
B4: Description and Purpose of Sheet | D4: Weighted Average Life Calculation Example
B5: Version number | D5: 1
B6: Date | D6: =TODAY() -> 2026-05-20
B9: Sub Debt and Equity
B11: Sub-Debt | E11: Equity | H11: Blended Sub-Debt & Equity
B12: Inputs | E12: Inputs | H12: Inputs
B13: Parameter | C13: Value | E13: Parameter | F13: Value | H13: Parameter | I13: Value
B14: Subordinated Debt Amount | C14: ='3 - Inputs'!D28 -> 8000000 | E14: ='3 - Inputs'!C34 -> Ordinary Share Capital | F14: ='3 - Inputs'!D34 -> 2000000 | H14: Total Shareholder Capital | I14: =C14+F14 -> 10000000
B15: Sub Debt Interest Rate (PIK) | C15: ='3 - Inputs'!D30 -> 0.12
B17: CFADS | C17: ='3 - Inputs'!G28 -> 8666199.417 | H17: Blended Shareholder IRR
B19: Key Results | E19: Key Results | H19: Key Results
B20: WAL-Principal | C20: =SUMPRODUCT($A$28:$A$52,H$28:H$52)/SUM(H$28:H$52) -> 6.19129697 | E20: WAL-Principal | F20: =SUMPRODUCT($A$28:$A$52,O$28:O$52)/SUM(O$28:O$52) -> 23.3437235 | H20: WAL-Principal | I20: =SUMPRODUCT($A$28:$A$52,R$28:R$52)/SUM(R$28:R$52) -> 19.36486942
B21: IRR / YtM | C21: =IRR(G26:G42) -> 0.12 | E21: Equity IRR / YtM | F21: =IRR(N27:N52) -> 0.1901844083 | H21: Equity IRR / YtM | I21: =IRR(Q27:Q52) -> 0.1602910927
A26: Period | B26: Year | C26: Opening Balance | D26: Change in Balance | E26: Closing Balance | F26: Interest accrued | G26: Payment | H26: WAL Calc | J26: Opening Balance | K26: Change in Balance | L26: Closing Balance | M26: Interest accrued | N26: Payment = Dividends & capital reductions | O26: WAL Calc | Q26: Combined Shareholder Cashflow | R26: WAL Calc
G27: =-C14 -> -8000000 | N27: =-'3 - Inputs'!D34 -> -2000000 | Q27: =N27+G27 -> -10000000
A28: ='4- Senior Debt'!C26 -> 1 | B28: ='4- Senior Debt'!D26 -> 2026-04-01 | C28: =IF($A28=1,$C$14,E27) -> 8000000 | D28: =-MIN(C28,(G28-F28)) -> -484366.5694 | E28: =C28+D28 -> 7515633.431 | F28: =C28*$C$15 -> 960000 | G28: =MIN(C28+F28,$C$17-'4- Senior Debt'!F26) -> 1444366.569 | H28: =MIN(0,D28) -> -484366.5694 | J28: =IF($A28=1,$F$14,L27) -> 2000000 | K28: =-MIN(J28,N28-M28) -> 380368.8167 | L28: =J28+K28 -> 2380368.817 | M28: =J28*$F$21 -> 380368.8167 | N28: =$C$17-'4- Senior Debt'!F26-'5 - Sub Debt & Equity'!G28 -> 0 | O28: =MIN(0,K28) -> 0 | Q28: 1444366.569 | R28: =H28+O28 -> -484366.5694
A29: ='4- Senior Debt'!C27 -> 2 | B29: ='4- Senior Debt'!D27 -> 2027-04-01 | C29: =IF($A29=1,$C$14,E28) -> 7515633.431 | D29: =-MIN(C29,(G29-F29)) -> -542490.5578 | E29: =C29+D29 -> 6973142.873 | F29: =C29*$C$15 -> 901876.0117 | G29: =MIN(C29+F29,$C$17-'4- Senior Debt'!F27) -> 1444366.569 | H29: =MIN(0,D29) -> -542490.5578 | J29: =IF($A29=1,$F$14,L28) -> 2380368.817 | K29: =-MIN(J29,N29-M29) -> 452709.035 | L29: =J29+K29 -> 2833077.852 | M29: =J29*$F$21 -> 452709.035 | N29: =$C$17-'4- Senior Debt'!F27-'5 - Sub Debt & Equity'!G29 -> 0 | O29: =MIN(0,K29) -> 0 | Q29: 1444366.569 | R29: =H29+O29 -> -542490.5578
A30: ='4- Senior Debt'!C28 -> 3 | B30: ='4- Senior Debt'!D28 -> 2028-04-01 | C30: 6973142.873 | D30: -607589.4247 | E30: 6365553.448 | F30: 836777.1447 | G30: =MIN(C30+F30,$C$17-'4- Senior Debt'!F28) -> 1444366.569 | H30: -607589.4247 | J30: =IF($A30=1,$F$14,L29) -> 2833077.852 | K30: 538807.235 | L30: 3371885.087 | M30: =J30*$F$21 -> 538807.235 | N30: =$C$17-'4- Senior Debt'!F28-'5 - Sub Debt & Equity'!G30 -> 0 | O30: 0 | Q30: 1444366.569 | R30: -607589.4247
A31: ='4- Senior Debt'!C29 -> 4 | B31: ='4- Senior Debt'!D29 -> 2029-04-01 | C31: 6365553.448 | D31: -680500.1557 | E31: 5685053.292 | F31: 763866.4138 | G31: =MIN(C31+F31,$C$17-'4- Senior Debt'!F29) -> 1444366.569 | H31: -680500.1557 | J31: 3371885.087 | K31: 641279.9702 | L31: 4013165.057 | M31: 641279.9702 | N31: =$C$17-'4- Senior Debt'!F29-'5 - Sub Debt & Equity'!G31 -> 0 | O31: 0 | Q31: 1444366.569 | R31: -680500.1557
A32: ='4- Senior Debt'!C30 -> 5 | B32: ='4- Senior Debt'!D30 -> 2030-04-01 | C32: 5685053.292 | D32: -762160.1743 | E32: 4922893.118 | F32: 682206.3951 | G32: =MIN(C32+F32,$C$17-'4- Senior Debt'!F30) -> 1444366.569 | H32: -762160.1743 | J32: 4013165.057 | K32: 763241.422 | L32: 4776406.479 | M32: 763241.422 | N32: =$C$17-'4- Senior Debt'!F30-'5 - Sub Debt & Equity'!G32 -> 0 | O32: 0 | Q32: 1444366.569 | R32: -762160.1743
A33: ='4- Senior Debt'!C31 -> 6 | B33: ='4- Senior Debt'!D31 -> 2031-04-01 | C33: 4922893.118 | D33: -853619.3953 | E33: 4069273.723 | F33: 590747.1742 | G33: =MIN(C33+F33,$C$17-'4- Senior Debt'!F31) -> 1444366.569 | H33: -853619.3953 | J33: 4776406.479 | K33: 908398.0402 | L33: 5684804.519 | M33: 908398.0402 | N33: =$C$17-'4- Senior Debt'!F31-'5 - Sub Debt & Equity'!G33 -> 0 | O33: 0 | Q33: 1444366.569 | R33: -853619.3953
A34: ='4- Senior Debt'!C32 -> 7 | B34: ='4- Senior Debt'!D32 -> 2032-04-01 | C34: 4069273.723 | D34: -956053.7227 | E34: 3113220 | F34: 488312.8467 | G34: =MIN(C34+F34,$C$17-'4- Senior Debt'!F32) -> 1444366.569 | H34: -956053.7227 | J34: 5684804.519 | K34: 1081161.184 | L34: 6765965.703 | M34: 1081161.184 | N34: =$C$17-'4- Senior Debt'!F32-'5 - Sub Debt & Equity'!G34 -> 0 | O34: 0 | Q34: 1444366.569 | R34: -956053.7227
A35: ='4- Senior Debt'!C33 -> 8 | B35: ='4- Senior Debt'!D33 -> 2033-04-01 | C35: 3113220 | D35: -1070780.169 | E35: 2042439.831 | F35: 373586.4 | G35: =MIN(C35+F35,$C$17-'4- Senior Debt'!F33) -> 1444366.569 | H35: -1070780.169 | J35: 6765965.703 | K35: 1286781.184 | L35: 8052746.887 | M35: 1286781.184 | N35: =$C$17-'4- Senior Debt'!F33-'5 - Sub Debt & Equity'!G35 -> 0 | O35: 0 | Q35: 1444366.569 | R35: -1070780.169
A36: ='4- Senior Debt'!C34 -> 9 | B36: ='4- Senior Debt'!D34 -> 2034-04-01 | C36: 2042439.831 | D36: -1199273.79 | E36: 843166.041 | F36: 245092.7797 | G36: =MIN(C36+F36,$C$17-'4- Senior Debt'!F34) -> 1444366.569 | H36: -1199273.79 | J36: 8052746.887 | K36: 1531506.902 | L36: 9584253.79 | M36: 1531506.902 | N36: =$C$17-'4- Senior Debt'!F34-'5 - Sub Debt & Equity'!G36 -> 0 | O36: 0 | Q36: 1444366.569 | R36: -1199273.79
A37: ='4- Senior Debt'!C35 -> 10 | B37: ='4- Senior Debt'!D35 -> 2035-04-01 | C37: 843166.041 | D37: -843166.041 | E37: 0 | F37: 101179.9249 | G37: =MIN(C37+F37,$C$17-'4- Senior Debt'!F35) -> 944345.9659 | H37: -843166.041 | J37: 9584253.79 | K37: 1322755.033 | L37: 10907008.82 | M37: 1822775.636 | N37: =$C$17-'4- Senior Debt'!F35-'5 - Sub Debt & Equity'!G37 -> 500020.6035 | O37: 0 | Q37: 1444366.569 | R37: -843166.041
A38: ='4- Senior Debt'!C36 -> 11 | B38: ='4- Senior Debt'!D36 -> 2036-04-01 | C38: 0 | D38: 0 | E38: 0 | F38: 0 | G38: =MIN(C38+F38,$C$17-'4- Senior Debt'!F36) -> 0 | H38: 0 | J38: 10907008.82 | K38: 629976.4503 | L38: 11536985.27 | M38: 2074343.02 | N38: =$C$17-'4- Senior Debt'!F36-'5 - Sub Debt & Equity'!G38 -> 1444366.569 | O38: 0 | Q38: 1444366.569 | R38: 0
A39: ='4- Senior Debt'!C37 -> 12 | B39: ='4- Senior Debt'!D37 -> 2037-04-01 | C39: 0 | D39: 0 | E39: 0 | F39: 0 | G39: =MIN(C39+F39,$C$17-'4- Senior Debt'!F37) -> 0 | H39: 0 | J39: 11536985.27 | K39: 749788.1488 | L39: 12286773.42 | M39: 2194154.718 | N39: =$C$17-'4- Senior Debt'!F37-'5 - Sub Debt & Equity'!G39 -> 1444366.569 | O39: 0 | Q39: 1444366.569 | R39: 0
A40: ='4- Senior Debt'!C38 -> 13 | B40: ='4- Senior Debt'!D38 -> 2038-04-01 | C40: 0 | D40: 0 | E40: 0 | F40: 0 | G40: =MIN(C40+F40,$C$17-'4- Senior Debt'!F38) -> 0 | H40: 0 | J40: 12286773.42 | K40: 892386.1642 | L40: 13179159.59 | M40: 2336752.734 | N40: =$C$17-'4- Senior Debt'!F38-'5 - Sub Debt & Equity'!G40 -> 1444366.569 | O40: 0 | Q40: 1444366.569 | R40: 0
A41: ='4- Senior Debt'!C39 -> 14 | B41: ='4- Senior Debt'!D39 -> 2039-04-01 | C41: 0 | D41: 0 | E41: 0 | F41: 0 | G41: =MIN(C41+F41,$C$17-'4- Senior Debt'!F39) -> 0 | H41: 0 | J41: 13179159.59 | K41: 1062104.099 | L41: 14241263.68 | M41: 2506470.668 | N41: =$C$17-'4- Senior Debt'!F39-'5 - Sub Debt & Equity'!G41 -> 1444366.569 | O41: 0 | Q41: 1444366.569 | R41: 0
A42: ='4- Senior Debt'!C40 -> 15 | B42: ='4- Senior Debt'!D40 -> 2040-04-01 | C42: 0 | D42: 0 | E42: 0 | F42: 0 | G42: =MIN(C42+F42,$C$17-'4- Senior Debt'!F40) -> 0 | H42: 0 | J42: 14241263.68 | K42: 1264099.739 | L42: 15505363.42 | M42: 2708466.308 | N42: =$C$17-'4- Senior Debt'!F40-'5 - Sub Debt & Equity'!G42 -> 1444366.569 | O42: 0 | Q42: 1444366.569 | R42: 0
A43: ='4- Senior Debt'!C41 -> 16 | B43: ='4- Senior Debt'!D41 -> 2041-04-01 | C43: 0 | D43: 0 | E43: 0 | F43: 0 | G43: =MIN(C43+F43,$C$17-'4- Senior Debt'!F41) -> 0 | H43: 0 | J43: 15505363.42 | K43: 1504511.799 | L43: 17009875.22 | M43: 2948878.369 | N43: =$C$17-'4- Senior Debt'!F41-'5 - Sub Debt & Equity'!G43 -> 1444366.569 | O43: 0 | Q43: 1444366.569 | R43: 0
A44: ='4- Senior Debt'!C42 -> 17 | B44: ='4- Senior Debt'!D42 -> 2042-04-01 | C44: 0 | D44: 0 | E44: 0 | F44: 0 | G44: =MIN(C44+F44,$C$17-'4- Senior Debt'!F42) -> 0 | H44: 0 | J44: 17009875.22 | K44: 1790646.486 | L44: 18800521.71 | M44: 3235013.055 | N44: =$C$17-'4- Senior Debt'!F42-'5 - Sub Debt & Equity'!G44 -> 1444366.569 | O44: 0 | Q44: 1444366.569 | R44: 0
A45: ='4- Senior Debt'!C43 -> 18 | B45: ='4- Senior Debt'!D43 -> 2043-04-01 | C45: 0 | D45: 0 | E45: 0 | F45: 0 | G45: =MIN(C45+F45,$C$17-'4- Senior Debt'!F43) -> 0 | H45: 0 | J45: 18800521.71 | K45: 2131199.528 | L45: 20931721.24 | M45: 3575566.098 | N45: =$C$17-'4- Senior Debt'!F43-'5 - Sub Debt & Equity'!G45 -> 1444366.569 | O45: 0 | Q45: 1444366.569 | R45: 0
A46: ='4- Senior Debt'!C44 -> 19 | B46: ='4- Senior Debt'!D44 -> 2044-04-01 | C46: 0 | D46: 0 | E46: 0 | F46: 0 | G46: =MIN(C46+F46,$C$17-'4- Senior Debt'!F44) -> 0 | H46: 0 | J46: 20931721.24 | K46: 2536520.45 | L46: 23468241.69 | M46: 3980887.019 | N46: =$C$17-'4- Senior Debt'!F44-'5 - Sub Debt & Equity'!G46 -> 1444366.569 | O46: 0 | Q46: 1444366.569 | R46: 0
A47: ='4- Senior Debt'!C45 -> 20 | B47: ='4- Senior Debt'!D45 -> 2045-04-01 | C47: 0 | D47: 0 | E47: 0 | F47: 0 | G47: =MIN(C47+F47,$C$17-'4- Senior Debt'!F45) -> 0 | H47: 0 | J47: 23468241.69 | K47: 3018927.091 | L47: 26487168.78 | M47: 4463293.66 | N47: =$C$17-'4- Senior Debt'!F45-'5 - Sub Debt & Equity'!G47 -> 1444366.569 | O47: 0 | Q47: 1444366.569 | R47: 0
A48: ='4- Senior Debt'!C46 -> 21 | B48: ='4- Senior Debt'!D46 -> 2046-04-01 | C48: 0 | D48: 0 | E48: 0 | F48: 0 | G48: =MIN(C48+F48,$C$17-'4- Senior Debt'!F46) -> 0 | H48: 0 | J48: 26487168.78 | K48: -3628752.894 | L48: 22858415.88 | M48: 5037446.523 | N48: =$C$17-'4- Senior Debt'!F46-'5 - Sub Debt & Equity'!G48 -> 8666199.417 | O48: -3628752.894 | Q48: 8666199.417 | R48: -3628752.894
A49: ='4- Senior Debt'!C47 -> 22 | B49: ='4- Senior Debt'!D47 -> 2047-04-01 | C49: 0 | D49: 0 | E49: 0 | F49: 0 | G49: =MIN(C49+F49,$C$17-'4- Senior Debt'!F47) -> 0 | H49: 0 | J49: 22858415.88 | K49: -4318885.116 | L49: 18539530.77 | M49: 4347314.3 | N49: =$C$17-'4- Senior Debt'!F47-'5 - Sub Debt & Equity'!G49 -> 8666199.417 | O49: -4318885.116 | Q49: 8666199.417 | R49: -4318885.116
A50: ='4- Senior Debt'!C48 -> 23 | B50: ='4- Senior Debt'!D48 -> 2048-04-01 | C50: 0 | D50: 0 | E50: 0 | F50: 0 | G50: =MIN(C50+F50,$C$17-'4- Senior Debt'!F48) -> 0 | H50: 0 | J50: 18539530.77 | K50: -5140269.727 | L50: 13399261.04 | M50: 3525929.69 | N50: =$C$17-'4- Senior Debt'!F48-'5 - Sub Debt & Equity'!G50 -> 8666199.417 | O50: -5140269.727 | Q50: 8666199.417 | R50: -5140269.727
A51: ='4- Senior Debt'!C49 -> 24 | B51: ='4- Senior Debt'!D49 -> 2049-04-01 | C51: 0 | D51: 0 | E51: 0 | F51: 0 | G51: =MIN(C51+F51,$C$17-'4- Senior Debt'!F49) -> 0 | H51: 0 | J51: 13399261.04 | K51: -6117868.883 | L51: 7281392.157 | M51: 2548330.533 | N51: =$C$17-'4- Senior Debt'!F49-'5 - Sub Debt & Equity'!G51 -> 8666199.417 | O51: -6117868.883 | Q51: 8666199.417 | R51: -6117868.883
A52: ='4- Senior Debt'!C50 -> 25 | B52: ='4- Senior Debt'!D50 -> 2050-04-01 | C52: 0 | D52: 0 | E52: 0 | F52: 0 | G52: =MIN(C52+F52,$C$17-'4- Senior Debt'!F50) -> 0 | H52: 0 | J52: 7281392.157 | K52: -7281392.157 | L52: 0 | M52: 1384807.259 | N52: =$C$17-'4- Senior Debt'!F50-'5 - Sub Debt & Equity'!G52 -> 8666199.417 | O52: -7281392.157 | Q52: 8666199.417 | R52: -7281392.157
A54: END

Sheet 6- Single Asset
B2: File Name | D2: =IFERROR(MID(CELL("filename",D2),FIND("[",CELL("filename",D2))+1,FIND("]",CELL("filename",D2))-FIND("[",CELL("filename",D2))-1),"Please save the file to show here") -> weighted-average-life-example-financial-model.xlsm
B3: Sheet Name | D3: =IFERROR(MID(CELL("filename",D2),FIND("]",CELL("filename",D2))+1,255),"Please save the file to show here") -> 6- Single Asset
B4: Description and Purpose of Sheet | D4: Weighted Average Life Calculation Example
B5: Version number | D5: 1
B6: Date | D6: =TODAY() -> 2026-05-20
B9: Single Asset
C13: Treat the CFADS as a Single Asset | F13: Aggregate of the Three Instruments
C14: Inputs
C15: Parameter | D15: Value
C16: Total Capital | D16: ='3 - Inputs'!D20+'3 - Inputs'!D28+'3 - Inputs'!D34 -> 100000000
C17: CFADS | D17: ='3 - Inputs'!G28 -> 8666199.417
C22: Key Results
C23: WAL-Principal | D23: =SUMPRODUCT(G30:G54,B30:B54)/SUM(G30:G54) -> 16.40733908 | F23: WAL-Principal | G23: =SUMPRODUCT($B$30:$B$54,L$30:L$54)/SUM(L$30:L$54) -> 14.34158872
C24: IRR / YtM | D24: =IRR(E29:E54) -> 0.0710992714
B28: Period | C28: Year | D28: Opening Balance | E28: Payment | F28: Interest | G28: Principal | H28: Closing Balance | J28: Total Payment | K28: Total "Interest" | L28: Total Net "Principal" | N28: Delta between "Whole Asset" and Sum-of-the-Liabilities
E29: =-$D$16 -> -100000000
B30: 1 | C30: =EDATE('3 - Inputs'!$D$13, 12*(ROW()-ROW($B$30))) -> 2026-04-01 | D30: =IF($B30=1,$D$16,H29) -> 100000000 | E30: =$D$17 -> 8666199.417 | F30: =D30*$D$24 -> 7109927.14 | G30: =E30-F30 -> 1556272.277 | H30: =D30-G30 -> 98443727.72 | J30: =L30+K30 -> 8666199.417 | K30: ='4- Senior Debt'!G26+'5 - Sub Debt & Equity'!F28+'5 - Sub Debt & Equity'!M28 -> 5840368.817 | L30: ='4- Senior Debt'!H26+'5 - Sub Debt & Equity'!D28*-1+'5 - Sub Debt & Equity'!K28*-1 -> 2825830.6 | N30: =G30-L30 -> -1269558.323
B31: =B30+1 -> 2 | C31: =EDATE('3 - Inputs'!$D$13, 12*(ROW()-ROW($B$30))) -> 2027-04-01 | D31: =IF($A31=1,$C$4,H30) -> 98443727.72 | E31: =$D$17 -> 8666199.417 | F31: =D31*$D$24 -> 6999277.315 | G31: =E31-F31 -> 1666922.102 | H31: =D31-G31 -> 96776805.62 | J31: 8666199.417 | K31: ='4- Senior Debt'!G27+'5 - Sub Debt & Equity'!F29+'5 - Sub Debt & Equity'!M29 -> 5718493.404 | L31: ='4- Senior Debt'!H27+'5 - Sub Debt & Equity'!D29*-1+'5 - Sub Debt & Equity'!K29*-1 -> 2947706.012 | N31: =G31-L31 -> -1280783.91
B32: =B31+1 -> 3 | C32: =EDATE('3 - Inputs'!$D$13, 12*(ROW()-ROW($B$30))) -> 2028-04-01 | D32: =IF($A32=1,$C$4,H31) -> 96776805.62 | E32: 8666199.417 | F32: 6880760.368 | G32: 1785439.049 | H32: 94991366.57 | J32: 8666199.417 | K32: ='4- Senior Debt'!G28+'5 - Sub Debt & Equity'!F30+'5 - Sub Debt & Equity'!M30 -> 5596596.513 | L32: ='4- Senior Debt'!H28+'5 - Sub Debt & Equity'!D30*-1+'5 - Sub Debt & Equity'!K30*-1 -> 3069602.904 | N32: -1284163.855
B33: 4 | C33: =EDATE('3 - Inputs'!$D$13, 12*(ROW()-ROW($B$30))) -> 2029-04-01 | D33: 94991366.57 | E33: 8666199.417 | F33: 6753816.952 | G33: 1912382.465 | H33: 93078984.11 | J33: 8666199.417 | K33: ='4- Senior Debt'!G29+'5 - Sub Debt & Equity'!F31+'5 - Sub Debt & Equity'!M31 -> 5476117.481 | L33: ='4- Senior Debt'!H29+'5 - Sub Debt & Equity'!D31*-1+'5 - Sub Debt & Equity'!K31*-1 -> 3190081.935 | N33: -1277699.471
B34: 5 | C34: =EDATE('3 - Inputs'!$D$13, 12*(ROW()-ROW($B$30))) -> 2030-04-01 | D34: 93078984.11 | E34: 8666199.417 | F34: 6617847.952 | G34: =E34-F34 -> 2048351.464 | H34: 91030632.64 | J34: 8666199.417 | K34: ='4- Senior Debt'!G30+'5 - Sub Debt & Equity'!F32+'5 - Sub Debt & Equity'!M32 -> 5358875.827 | L34: ='4- Senior Debt'!H30+'5 - Sub Debt & Equity'!D32*-1+'5 - Sub Debt & Equity'!K32*-1 -> 3307323.59 | N34: -1258972.125
B35: 6 | C35: =EDATE('3 - Inputs'!$D$13, 12*(ROW()-ROW($B$30))) -> 2031-04-01 | D35: 91030632.64 | E35: 8666199.417 | F35: 6472211.656 | G35: 2193987.761 | H35: 88836644.88 | J35: 8666199.417 | K35: ='4- Senior Debt'!G31+'5 - Sub Debt & Equity'!F33+'5 - Sub Debt & Equity'!M33 -> 5247152.983 | L35: ='4- Senior Debt'!H31+'5 - Sub Debt & Equity'!D33*-1+'5 - Sub Debt & Equity'!K33*-1 -> 3419046.434 | N35: -1225058.673
B36: 7 | C36: =EDATE('3 - Inputs'!$D$13, 12*(ROW()-ROW($B$30))) -> 2032-04-01 | D36: 88836644.88 | E36: 8666199.417 | F36: 6316220.724 | G36: 2349978.692 | H36: 86486666.19 | J36: 8666199.417 | K36: ='4- Senior Debt'!G32+'5 - Sub Debt & Equity'!F34+'5 - Sub Debt & Equity'!M34 -> 5143790.545 | L36: ='4- Senior Debt'!H32+'5 - Sub Debt & Equity'!D34*-1+'5 - Sub Debt & Equity'!K34*-1 -> 3522408.872 | N36: -1172430.179
B37: 8 | C37: =EDATE('3 - Inputs'!$D$13, 12*(ROW()-ROW($B$30))) -> 2033-04-01 | D37: 86486666.19 | E37: 8666199.417 | F37: 6149138.951 | G37: 2517060.465 | H37: 83969605.72 | J37: 8666199.417 | K37: ='4- Senior Debt'!G33+'5 - Sub Debt & Equity'!F35+'5 - Sub Debt & Equity'!M35 -> 5052308.282 | L37: ='4- Senior Debt'!H33+'5 - Sub Debt & Equity'!D35*-1+'5 - Sub Debt & Equity'!K35*-1 -> 3613891.135 | N37: -1096830.67
B38: 9 | C38: =EDATE('3 - Inputs'!$D$13, 12*(ROW()-ROW($B$30))) -> 2034-04-01 | D38: 83969605.72 | E38: 8666199.417 | F38: 5970177.786 | G38: 2696021.63 | H38: 81273584.09 | J38: 8666199.417 | K38: ='4- Senior Debt'!G34+'5 - Sub Debt & Equity'!F36+'5 - Sub Debt & Equity'!M36 -> 4977045.772 | L38: ='4- Senior Debt'!H34+'5 - Sub Debt & Equity'!D36*-1+'5 - Sub Debt & Equity'!K36*-1 -> 3689153.645 | N38: -993132.0143
B39: 10 | C39: =EDATE('3 - Inputs'!$D$13, 12*(ROW()-ROW($B$30))) -> 2035-04-01 | D39: 81273584.09 | E39: 8666199.417 | F39: 5778492.613 | G39: 2887706.804 | H39: 78385877.29 | J39: 8666199.417 | K39: ='4- Senior Debt'!G35+'5 - Sub Debt & Equity'!F37+'5 - Sub Debt & Equity'!M37 -> 4923332.314 | L39: ='4- Senior Debt'!H35+'5 - Sub Debt & Equity'!D37*-1+'5 - Sub Debt & Equity'!K37*-1 -> 3742867.103 | N39: -855160.2992
B40: 11 | C40: =EDATE('3 - Inputs'!$D$13, 12*(ROW()-ROW($B$30))) -> 2036-04-01 | D40: 78385877.29 | E40: 8666199.417 | F40: 5573178.763 | G40: 3093020.654 | H40: 75292856.64 | J40: 8666199.417 | K40: ='4- Senior Debt'!G36+'5 - Sub Debt & Equity'!F38+'5 - Sub Debt & Equity'!M38 -> 4862596.967 | L40: ='4- Senior Debt'!H36+'5 - Sub Debt & Equity'!D38*-1+'5 - Sub Debt & Equity'!K38*-1 -> 3803602.449 | N40: -710581.7958
B41: 12 | C41: =EDATE('3 - Inputs'!$D$13, 12*(ROW()-ROW($B$30))) -> 2037-04-01 | D41: 75292856.64 | E41: 8666199.417 | F41: 5353267.248 | G41: 3312932.168 | H41: 71979924.47 | J41: 8666199.417 | K41: ='4- Senior Debt'!G37+'5 - Sub Debt & Equity'!F39+'5 - Sub Debt & Equity'!M39 -> 4760729.721 | L41: ='4- Senior Debt'!H37+'5 - Sub Debt & Equity'!D39*-1+'5 - Sub Debt & Equity'!K39*-1 -> 3905469.696 | N41: -592537.5275
B42: 13 | C42: =EDATE('3 - Inputs'!$D$13, 12*(ROW()-ROW($B$30))) -> 2038-04-01 | D42: 71979924.47 | E42: 8666199.417 | F42: 5117720.185 | G42: 3548479.232 | H42: 68431445.24 | J42: 8666199.417 | K42: ='4- Senior Debt'!G38+'5 - Sub Debt & Equity'!F40+'5 - Sub Debt & Equity'!M40 -> 4670564.844 | L42: ='4- Senior Debt'!H38+'5 - Sub Debt & Equity'!D40*-1+'5 - Sub Debt & Equity'!K40*-1 -> 3995634.573 | N42: -447155.3409
B43: 14 | C43: =EDATE('3 - Inputs'!$D$13, 12*(ROW()-ROW($B$30))) -> 2039-04-01 | D43: 68431445.24 | E43: 8666199.417 | F43: 4865425.897 | G43: 3800773.52 | H43: 64630671.72 | J43: 8666199.417 | K43: ='4- Senior Debt'!G39+'5 - Sub Debt & Equity'!F41+'5 - Sub Debt & Equity'!M41 -> 4595881.742 | L43: ='4- Senior Debt'!H39+'5 - Sub Debt & Equity'!D41*-1+'5 - Sub Debt & Equity'!K41*-1 -> 4070317.675 | N43: -269544.1551
B44: 15 | C44: =EDATE('3 - Inputs'!$D$13, 12*(ROW()-ROW($B$30))) -> 2040-04-01 | D44: 64630671.72 | E44: 8666199.417 | F44: 4595193.669 | G44: 4071005.748 | H44: 60559665.97 | J44: 8666199.417 | K44: ='4- Senior Debt'!G40+'5 - Sub Debt & Equity'!F42+'5 - Sub Debt & Equity'!M42 -> 4541256.293 | L44: ='4- Senior Debt'!H40+'5 - Sub Debt & Equity'!D42*-1+'5 - Sub Debt & Equity'!K42*-1 -> 4124943.124 | N44: -53937.37618
B45: 16 | C45: =EDATE('3 - Inputs'!$D$13, 12*(ROW()-ROW($B$30))) -> 2041-04-01 | D45: 60559665.97 | E45: 8666199.417 | F45: 4305748.126 | G45: 4360451.29 | H45: 56199214.68 | J45: 8666199.417 | K45: ='4- Senior Debt'!G41+'5 - Sub Debt & Equity'!F43+'5 - Sub Debt & Equity'!M43 -> 4512216.21 | L45: ='4- Senior Debt'!H41+'5 - Sub Debt & Equity'!D43*-1+'5 - Sub Debt & Equity'!K43*-1 -> 4153983.206 | N45: 206468.0841
B46: 17 | C46: =EDATE('3 - Inputs'!$D$13, 12*(ROW()-ROW($B$30))) -> 2042-04-01 | D46: 56199214.68 | E46: 8666199.417 | F46: 3995723.217 | G46: 4670476.2 | H46: 51528738.48 | J46: 8666199.417 | K46: ='4- Senior Debt'!G42+'5 - Sub Debt & Equity'!F44+'5 - Sub Debt & Equity'!M44 -> 4515426.147 | L46: ='4- Senior Debt'!H42+'5 - Sub Debt & Equity'!D44*-1+'5 - Sub Debt & Equity'!K44*-1 -> 4150773.27 | N46: 519702.9299
B47: 18 | C47: =EDATE('3 - Inputs'!$D$13, 12*(ROW()-ROW($B$30))) -> 2043-04-01 | D47: 51528738.48 | E47: 8666199.417 | F47: 3663655.762 | G47: 5002543.655 | H47: 46526194.82 | J47: 8666199.417 | K47: ='4- Senior Debt'!G43+'5 - Sub Debt & Equity'!F45+'5 - Sub Debt & Equity'!M45 -> 4558908.201 | L47: ='4- Senior Debt'!H43+'5 - Sub Debt & Equity'!D45*-1+'5 - Sub Debt & Equity'!K45*-1 -> 4107291.215 | N47: 895252.4395
B48: 19 | C48: =EDATE('3 - Inputs'!$D$13, 12*(ROW()-ROW($B$30))) -> 2044-04-01 | D48: 46526194.82 | E48: 8666199.417 | F48: 3307978.553 | G48: 5358220.864 | H48: 41167973.96 | J48: 8666199.417 | K48: ='4- Senior Debt'!G44+'5 - Sub Debt & Equity'!F46+'5 - Sub Debt & Equity'!M46 -> 4652304.585 | L48: ='4- Senior Debt'!H44+'5 - Sub Debt & Equity'!D46*-1+'5 - Sub Debt & Equity'!K46*-1 -> 4013894.831 | N48: 1344326.033
B49: 20 | C49: =EDATE('3 - Inputs'!$D$13, 12*(ROW()-ROW($B$30))) -> 2045-04-01 | D49: 41167973.96 | E49: 8666199.417 | F49: 2927012.953 | G49: 5739186.463 | H49: 35428787.5 | J49: 8666199.417 | K49: ='4- Senior Debt'!G45+'5 - Sub Debt & Equity'!F47+'5 - Sub Debt & Equity'!M47 -> 4807190.462 | L49: ='4- Senior Debt'!H45+'5 - Sub Debt & Equity'!D47*-1+'5 - Sub Debt & Equity'!K47*-1 -> 3859008.954 | N49: 1880177.509
B50: 21 | C50: =EDATE('3 - Inputs'!$D$13, 12*(ROW()-ROW($B$30))) -> 2046-04-01 | D50: 35428787.5 | E50: 8666199.417 | F50: 2518960.977 | G50: 6147238.439 | H50: 29281549.06 | J50: 8666199.417 | K50: ='4- Senior Debt'!G46+'5 - Sub Debt & Equity'!F48+'5 - Sub Debt & Equity'!M48 -> 5037446.523 | L50: ='4- Senior Debt'!H46+'5 - Sub Debt & Equity'!D48*-1+'5 - Sub Debt & Equity'!K48*-1 -> 3628752.894 | N50: 2518485.545
B51: 22 | C51: =EDATE('3 - Inputs'!$D$13, 12*(ROW()-ROW($B$30))) -> 2047-04-01 | D51: 29281549.06 | E51: 8666199.417 | F51: 2081896.803 | G51: 6584302.613 | H51: 22697246.44 | J51: 8666199.417 | K51: ='4- Senior Debt'!G47+'5 - Sub Debt & Equity'!F49+'5 - Sub Debt & Equity'!M49 -> 4347314.3 | L51: ='4- Senior Debt'!H47+'5 - Sub Debt & Equity'!D49*-1+'5 - Sub Debt & Equity'!K49*-1 -> 4318885.116 | N51: 2265417.497
B52: 23 | C52: =EDATE('3 - Inputs'!$D$13, 12*(ROW()-ROW($B$30))) -> 2048-04-01 | D52: 22697246.44 | E52: 8666199.417 | F52: 1613757.685 | G52: 7052441.732 | H52: 15644804.71 | J52: 8666199.417 | K52: ='4- Senior Debt'!G48+'5 - Sub Debt & Equity'!F50+'5 - Sub Debt & Equity'!M50 -> 3525929.69 | L52: ='4- Senior Debt'!H48+'5 - Sub Debt & Equity'!D50*-1+'5 - Sub Debt & Equity'!K50*-1 -> 5140269.727 | N52: 1912172.005
B53: 24 | C53: =EDATE('3 - Inputs'!$D$13, 12*(ROW()-ROW($B$30))) -> 2049-04-01 | D53: 15644804.71 | E53: 8666199.417 | F53: 1112334.216 | G53: 7553865.2 | H53: 8090939.512 | J53: 8666199.417 | K53: ='4- Senior Debt'!G49+'5 - Sub Debt & Equity'!F51+'5 - Sub Debt & Equity'!M51 -> 2548330.533 | L53: ='4- Senior Debt'!H49+'5 - Sub Debt & Equity'!D51*-1+'5 - Sub Debt & Equity'!K51*-1 -> 6117868.883 | N53: 1435996.317
B54: 25 | C54: =EDATE('3 - Inputs'!$D$13, 12*(ROW()-ROW($B$30))) -> 2050-04-01 | D54: 8090939.512 | E54: 8666199.417 | F54: 575259.9042 | G54: 8090939.512 | H54: -2.989545465e-07 | J54: 8666199.417 | K54: ='4- Senior Debt'!G50+'5 - Sub Debt & Equity'!F52+'5 - Sub Debt & Equity'!M52 -> 1384807.259 | L54: ='4- Senior Debt'!H50+'5 - Sub Debt & Equity'!D52*-1+'5 - Sub Debt & Equity'!K52*-1 -> 7281392.157 | N54: 809547.3551
C56: Total | E56: =SUM(E30:E54) -> 216654985.4 | F56: =SUM(F30:F54) -> 116654985.4 | G56: =SUM(G30:G54) -> 100000000 | J56: =SUM(J30:J54) -> 216654985.4 | K56: =SUM(K30:K54) -> 116654985.4 | L56: =SUM(L30:L54) -> 100000000 | N56: =SUM(N30:N54) -> 3.37138772e-07
B63: END

Sheet 7- GDP Deflator
B2: File Name | D2: =IFERROR(MID(CELL("filename",D2),FIND("[",CELL("filename",D2))+1,FIND("]",CELL("filename",D2))-FIND("[",CELL("filename",D2))-1),"Please save the file to show here") -> weighted-average-life-example-financial-model.xlsm
B3: Sheet Name | D3: =IFERROR(MID(CELL("filename",D2),FIND("]",CELL("filename",D2))+1,255),"Please save the file to show here") -> 7- GDP Deflator
B4: Description and Purpose of Sheet | D4: Weighted Average Life Calculation Example
B5: Version number | D5: 1
B6: Date | D6: =TODAY() -> 2026-05-20
B9: GDP Deflator
B10: GDP Deflator Series - Base Year = 2023.
B12: Taken from TAG Data Book here: | D12: TAG Data Book
C13: (2023=100)
C15: Year | D15: GDP Deflator | E15: YoY % change
C16: 1990 | D16: 44.63492663
C17: 1991 | D17: 47.63434619 | E17: =(D17-D16)/(D16)*100 -> 6.719893546
C18: 1992 | D18: 49.19884991 | E18: =((D18-D17)/D17)*100 -> 3.28440263
C19: 1993 | D19: 50.67540416 | E19: 3.00119668
C20: 1994 | D20: 51.61190506 | E20: 1.848038342
C21: 1995 | D21: 52.95949444 | E21: 2.611004929
C22: 1996 | D22: 55.15044343 | E22: 4.137027771
C23: 1997 | D23: 55.07194308 | E23: =((D23-D22)/D22)*100 -> -0.14233857
C24: 1998 | D24: 55.77823858 | E24: 1.282496059
C25: 1999 | D25: 56.548705 | E25: 1.381302893
C26: 2000 | D26: 57.18439172 | E26: 1.124140185
C27: 2001 | D27: 58.04831094 | E27: 1.510760537
C28: 2002 | D28: 59.2758654 | E28: 2.114711754
C29: 2003 | D29: 60.69063696 | E29: 2.386758178
C30: 2004 | D30: 62.26147471 | E30: 2.588270318
C31: 2005 | D31: 64.09273425 | E31: 2.941240237
C32: 2006 | D32: 65.88453595 | E32: 2.795639347
C33: 2007 | D33: 67.36430913 | E33: 2.246009869
C34: 2008 | D34: 69.69128386 | E34: 3.454313962
C35: 2009 | D35: 70.99858471 | E35: 1.875845546
C36: 2010 | D36: 72.12521014 | E36: 1.586828011
C37: 2011 | D37: 73.7100658 | E37: 2.197367133
C38: 2012 | D38: 74.84624418 | E38: 1.541415505
C39: 2013 | D39: 76.42393513 | E39: 2.107909307
C40: 2014 | D40: 77.43166783 | E40: 1.318608756
C41: 2015 | D41: 77.94327 | E41: 0.6607143815
C42: 2016 | D42: 79.47163863 | E42: 1.960873127
C43: 2017 | D43: 80.94736219 | E43: 1.856918498
C44: 2018 | D44: 82.50293598 | E44: 1.921710285
C45: 2019 | D45: 84.26151001 | E45: 2.131529035
C46: 2020 | D46: 88.63946221 | E46: 5.195672614
C47: 2021 | D47: 88.51402778 | E47: -0.1415108154
C48: 2022 | D48: 93.32352425 | E48: 5.433598025
C49: 2023 | D49: 100 | E49: 7.154118753
C50: 2024 | D50: 103.8364451 | E50: 3.836445139
C51: 2025 | D51: 107.3521808 | E51: 3.385839768
C52: 2026 | D52: 109.768469 | E52: 2.250804916
C53: 2027 | D53: 112.0237924 | E53: 2.054618634
C54: 2028 | D54: 114.1829988 | E54: 1.927453426
C55: 2029 | D55: 116.2689982 | E55: 1.826891388
C56: 2030 | D56: 118.5137852 | E56: 1.930684115
C57: 2031 | D57: 121.07412 | E57: 2.160368726
C58: 2032 | D58: 123.8588248 | E58: 2.3
C59: 2033 | D59: 126.7075777 | E59: 2.3
C60: 2034 | D60: 129.621852 | E60: 2.3
C61: 2035 | D61: 132.6031546 | E61: 2.3
C62: 2036 | D62: 135.6530272 | E62: 2.3
C63: 2037 | D63: 138.7730468 | E63: 2.3
C64: 2038 | D64: 141.9648269 | E64: 2.3
C65: 2039 | D65: 145.2300179 | E65: 2.3
C66: 2040 | D66: 148.5703083 | E66: 2.3
C67: 2041 | D67: 151.9874254 | E67: 2.3
C68: 2042 | D68: 155.4831362 | E68: 2.3
C69: 2043 | D69: 159.0592483 | E69: 2.3
C70: 2044 | D70: 162.717611 | E70: 2.3
C71: 2045 | D71: 166.4601161 | E71: 2.3
C72: 2046 | D72: 170.2886987 | E72: 2.3
C73: 2047 | D73: 174.2053388 | E73: 2.3
C74: 2048 | D74: 178.2120616 | E74: 2.3
C75: 2049 | D75: 182.310939 | E75: 2.3
C76: 2050 | D76: 186.5040906 | E76: 2.3
C77: 2051 | D77: 190.7936847 | E77: 2.3
C78: 2052 | D78: 195.1819394 | E78: 2.3
C79: 2053 | D79: 199.6711241 | E79: 2.3
C80: 2054 | D80: 204.2635599 | E80: 2.3
C81: 2055 | D81: 208.9616218 | E81: 2.3
C82: 2056 | D82: 213.7677391 | E82: =((D82-D81)/D81)*100 -> 2.3
C83: 2057 | D83: 218.6843971 | E83: 2.3
C84: 2058 | D84: 223.7141382 | E84: 2.3
C85: 2059 | D85: 228.8595634 | E85: 2.3
C86: 2060 | D86: 234.1233334 | E86: 2.3
C87: 2061 | D87: 239.50817 | E87: 2.3
C88: 2062 | D88: 245.0168579 | E88: 2.3
C89: 2063 | D89: 250.6522457 | E89: 2.3
C90: 2064 | D90: 256.4172473 | E90: 2.3
C91: 2065 | D91: 262.314844 | E91: 2.3
C92: 2066 | D92: 268.3480854 | E92: 2.3
C93: 2067 | D93: 274.5200914 | E93: 2.3
C94: 2068 | D94: 280.8340535 | E94: 2.3
C95: 2069 | D95: 287.2932367 | E95: 2.3
C96: 2070 | D96: 293.9009812 | E96: 2.3
C97: 2071 | D97: 300.6607037 | E97: 2.3
C98: 2072 | D98: 307.5758999 | E98: 2.3
C99: 2073 | D99: 314.6501456 | E99: 2.3
C100: 2074 | D100: 321.887099 | E100: 2.3
C101: 2075 | D101: 329.2905022 | E101: 2.3
C102: 2076 | D102: 336.8641838 | E102: 2.3
C103: 2077 | D103: 344.61206 | E103: 2.3
C104: 2078 | D104: 352.5381374 | E104: 2.3
C105: 2079 | D105: 360.6465146 | E105: 2.3
C106: 2080 | D106: 368.9413844 | E106: 2.3
C107: 2081 | D107: 377.4270362 | E107: 2.3
C108: 2082 | D108: 386.1078581 | E108: 2.3
C109: 2083 | D109: 394.9883388 | E109: 2.3
C110: 2084 | D110: 404.0730706 | E110: 2.3
C111: 2085 | D111: 413.3667512 | E111: 2.3
C112: 2086 | D112: 422.8741865 | E112: 2.3
C113: 2087 | D113: 432.6002928 | E113: 2.3
C114: 2088 | D114: 442.5500995 | E114: 2.3
C115: 2089 | D115: 452.7287518 | E115: 2.3
C116: 2090 | D116: 463.1415131 | E116: 2.3
C117: 2091 | D117: 473.7937679 | E117: 2.3
C118: 2092 | D118: 484.6910246 | E118: 2.3
C119: 2093 | D119: 495.8389181 | E119: 2.3
C120: 2094 | D120: 507.2432132 | E120: 2.3
C121: 2095 | D121: 518.9098071 | E121: 2.3
C122: 2096 | D122: 530.8447327 | E122: 2.3
C123: 2097 | D123: 543.0541616 | E123: 2.3
C124: 2098 | D124: 555.5444073 | E124: 2.3
C125: 2099 | D125: 568.3219286 | E125: 2.3
C126: 2100 | D126: 581.393333 | E126: 2.3
A128: END

Sheet 8 - Real Gilt
B2: File Name | D2: =IFERROR(MID(CELL("filename",D2),FIND("[",CELL("filename",D2))+1,FIND("]",CELL("filename",D2))-FIND("[",CELL("filename",D2))-1),"Please save the file to show here") -> weighted-average-life-example-financial-model.xlsm
B3: Sheet Name | D3: =IFERROR(MID(CELL("filename",D2),FIND("]",CELL("filename",D2))+1,255),"Please save the file to show here") -> 8 - Real Gilt
B4: Description and Purpose of Sheet | D4: Weighted Average Life Calculation Example
B5: Version number | D5: 1
B6: Date | D6: =TODAY() -> 2026-05-20
B9: Real Gilt
B11: Purpose: To ensure gilt rates are net of inflation, i.e., to go from nominal to real rates. Using real rates from the DMO/BoE is not consistent given they use index-linked measures which are linked to RPI, and appraisal methods use GDP deflation instead.
B12: Its important we ensure consistency across appraisal by using the same deflator data which will be used for inflation adjustments across the rest of the appraisal modelling.
B14: Start of the appraisal period | C14: 2023
B15: End of the appraisal period | C15: 2060
B16: Length of the appraisal period | C16: =C15-C14 -> 37
B17: CAGR Appraisal period | C17: =((_xlfn.XLOOKUP(C15,'7- GDP Deflator'!$C$16:$C$126,'7- GDP Deflator'!$D$16:$D$126,,0)/_xlfn.XLOOKUP(C14,'7- GDP Deflator'!$C$16:$C$126,'7- GDP Deflator'!$D$16:$D$126,,0))^(1/C16)-1)*100 -> 2.325763042
B18: WAL | C18: ='2 - WAL Summary'!F17 -> 16.40733908
B19: Nearest liquidity benchmark | C19: =_xlfn.LET(_xlpm.x,$C$18,_xlpm.b,{5,10,30},INDEX(_xlpm.b,_xlfn.XMATCH(MIN(ABS(_xlpm.b-_xlpm.x)),ABS(_xlpm.b-_xlpm.x),0))) -> 10
B20: Corresponding gilt rate (read off curve using a benchmark maturity) | C20: 4.5 | D20: Gilt Rate Yield Curve: https://www.bankofengland.co.uk/statistics/yield-curves > Latest Yield Curve Data > Use GLC Daily Data Current Month
B22: Real gilt rate | C22: =((1+C20/100)/(1+C17/100))-1 -> 0.02124818709
A24: END

Sheet Charts>> (hidden)
C11: Charts

Sheet Chart Format Instructions (hidden)
A1: Chart formatting tool
A3: This toolkit allows you to automatically format your charts and graphs to the DfT statistics house style.
A4: Once formatted, the font on the charts and text will be a suitable size for reading and printing when pasted in word or used in presentations.
A6: To use the toolkit:
A8: Go to the worksheet containing the chart to be formatted and click on it
A9: Select the appropriate chart type from the DfT tab at the top of the spreadsheet
A10: Click the appropriate button
A12: The chart will be moved to a new sheet, if not already the case, and formatted to a consistent style.
A13: If you want to keep the original chart - take a copy before running the macro
A14: You can reposition the location of any text boxes or labels if you have applied if needed but do not adjust any formatting.
A16: Formatting the chart
A18: When you run the macro for either bar or line charts you will be presented with some formatting options for your axes
A19: For bar charts, you will be asked to change the increments for your value axes labels. It is recommended you have no more than 6 values showing.
A20: For example, if you have a chart with values ranging from 0 to 1000, you should have increments of 200
A21: For line charts, you will be asked the same as above and also the increments for your category axes. Try to make it so your labels do no overlap
A22: For example, if you have a chart showing data over time from 1990 to 2014, you may want to reduce the frequency of your labels to show one every 3 years
A23: For line charts, you will also be given two different label options to use for your chart. Where possible, move the text box labels and position them on the chart next to the lines and delete the legend above the chart
A24: Where this isn't possible, delete the individual text boxes and leave the legend above the chart
A26: Exporting the chart
A28: When copying and exporting the chart to another location e.g. word, the chart will look better if copied from it's own worksheet (i.e. how the macro places it).
A29: If you do embed it in a worksheet, the chart is set up to retain the original font size, even if the chart is resized. This is to ensure the font is still readable when copied and pasted elsewhere. Please do not adjust the font manaully - it will become small and unreadable when pasted elsewhere.
